bitfinex/quotes_SOLUSD_20250611
["timestamp","ask_amount","ask_price","bid_price","bid_amount"]
[1749650966348,4.43452408,166.35,166.31,10.0]
[1749650966754,26.0,166.33,166.31,10.0]
[1749650966957,26.0,166.33,166.3,10.0]
[1749650967150,26.0,166.33,166.31,10.0]
[1749650968692,26.0,166.33,166.3,10.0]
[1749650968860,26.0,166.33,166.29,10.0]
[1749650969062,26.0,166.33,166.3,10.0]
[1749650970758,26.0,166.33,166.29,10.0]
[1749650970963,26.0,166.33,166.3,10.0]
[1749650972061,26.0,166.34,166.29,10.0]
[1749650972265,26.0,166.34,166.3,10.0]
[1749650976496,26.0,166.34,166.31,10.0]
[1749650976983,26.0,166.34,166.3,10.0]
[1749650977182,26.0,166.34,166.31,10.0]
[1749650977764,32.00216157,166.36,166.31,10.0]
[1749650977990,5.86,166.36,166.34,10.0]
[1749650978196,5.86,166.36,166.35,10.0]
[1749650979181,5.86,166.36,166.34,10.0]
[1749650979385,5.86,166.36,166.33,10.0]
[1749650980087,5.86,166.36,166.32,35.54]
[1749650980297,5.86,166.36,166.34,10.0]
[1749650981396,5.86,166.36,166.33,10.0]
[1749650985196,5.86,166.36,166.34,10.0]
[1749650985984,5.86,166.36,166.35,10.0]
[1749650987272,5.86,166.36,166.34,10.0]
[1749650988002,26.0,166.34,166.33,10.0]
[1749650988301,26.0,166.34,166.33,35.54]
[1749650992908,5.86,166.36,166.35,10.0]
[1749650993412,31.86,166.36,166.35,10.0]
[1749650995801,5.86,166.36,166.35,10.0]
[1749650996625,26.0,166.34,166.31,11.6071]
[1749650996921,26.0,166.33,166.32,10.0]
[1749650997213,26.0,166.33,166.31,25.52]
[1749650997399,26.0,166.33,166.31,35.52]
[1749650997591,26.0,166.33,166.31,25.52]
[1749650997906,26.0,166.33,166.32,10.0]
[1749650998412,26.0,166.33,166.3,35.52]
[1749650999107,26.0,166.33,166.28,10.0]
[1749650999306,26.0,166.33,166.29,25.52]
[1749650999492,26.0,166.33,166.3,10.0]
[1749651000607,26.0,166.33,166.29,25.52]
[1749651001315,26.0,166.33,166.3,10.0]
[1749651001697,26.0,166.33,166.31,10.0]
[1749651002905,26.0,166.33,166.3,10.0]
[1749651003112,26.0,166.33,166.31,10.0]
[1749651003996,4.43895334,166.35,166.34,10.0]
[1749651004193,152.56,166.36,166.34,10.0]
[1749651004391,5.86,166.36,166.35,10.0]
[1749651004910,5.86,166.36,166.34,10.0]
[1749651005117,26.0,166.33,166.32,35.52]
[1749651006910,26.0,166.33,166.32,54.16964886]
[1749651007106,5.86,166.36,166.35,10.0]
[1749651007300,31.86,166.36,166.35,35.52]
[1749651008000,4.44735096,166.4,166.38,10.0]
[1749651008201,146.7,166.46,166.4,10.0]
[1749651008409,4.4497756,166.45,166.4,35.52]
[1749651008923,26.0,166.43,166.4,35.52]
[1749651009304,26.0,166.43,166.4,25.52]
[1749651009522,26.0,166.43,166.38,35.52]
[1749651010019,0.42648471,166.42,166.38,25.52]
[1749651010223,26.0,166.41,166.36,35.52]
[1749651010425,26.0,166.41,166.37,10.0]
[1749651010612,26.0,166.41,166.36,35.52]
[1749651010818,0.42648471,166.4,166.34,10.0]
[1749651011008,4.87626031,166.4,166.34,25.52]
[1749651011309,26.0,166.37,166.33,25.52]
[1749651011518,26.0,166.37,166.32,10.0]
[1749651011697,0.14216157,166.36,166.3,10.0]
[1749651011903,31.84,166.37,166.32,10.0]
[1749651012200,31.84,166.37,166.34,10.0]
[1749651013030,31.84,166.37,166.33,25.52]
[1749651013031,0.14216157,166.36,166.33,25.52]
[1749651013213,0.14216157,166.36,166.32,10.0]
[1749651013712,0.14216157,166.36,166.31,35.52]
[1749651015019,0.14216157,166.36,166.31,25.52]
[1749651015213,0.14216157,166.36,166.31,35.52]
[1749651016027,0.14216157,166.36,166.31,25.52]
[1749651016335,0.14216157,166.36,166.31,35.52]
[1749651016547,0.14216157,166.36,166.32,10.0]
[1749651017127,31.84,166.37,166.32,10.0]
[1749651018926,31.84,166.37,166.33,10.0]
[1749651019934,31.84,166.37,166.36,10.0]
[1749651019935,5.84,166.37,166.36,10.0]
[1749651021140,5.84,166.37,166.35,25.52]
[1749651021510,26.0,166.34,166.33,10.0]
[1749651023531,26.0,166.34,166.33,28.64964886]
[1749651023843,5.84,166.37,166.36,10.0]
[1749651024141,5.84,166.37,166.36,35.52]
[1749651026316,31.84,166.37,166.36,35.52]
[1749651026921,5.84,166.37,166.36,35.52]
[1749651028345,5.84,166.37,166.36,54.16964886]
[1749651028551,0.14216157,166.44,166.37,10.0]
[1749651028753,26.0,166.42,166.41,10.0]
[1749651029629,26.0,166.42,166.4,35.5]
[1749651029949,26.0,166.42,166.4,25.5]
[1749651030342,26.14216157,166.41,166.37,10.0]
[1749651030532,30.59177629,166.41,166.37,10.0]
[1749651030848,26.14216157,166.41,166.37,10.0]
[1749651031146,26.0,166.4,166.36,35.5]
[1749651031357,26.0,166.4,166.35,35.5]
[1749651031358,0.14216157,166.39,166.35,35.5]
[1749651031642,0.14216157,166.39,166.31,1.57]
[1749651031643,0.14216157,166.39,166.37,10.0]
[1749651032155,0.14216157,166.39,166.35,10.0]
[1749651032335,0.14216157,166.39,166.33,10.0]
[1749651032541,0.14216157,166.39,166.35,10.0]
[1749651033649,26.0,166.36,166.35,10.0]
[1749651037041,26.0,166.36,166.29,6.4186]
[1749651037042,26.0,166.35,166.29,16.4186]
[1749651037238,26.0,166.35,166.3,25.5]
[1749651037642,26.0,166.35,166.31,10.0]
[1749651038231,26.0,166.35,166.33,10.0]
[1749651038770,26.0,166.35,166.34,25.5]
[1749651038938,26.0,166.35,166.34,35.5]
[1749651042236,26.0,166.35,166.34,25.5]
[1749651042436,26.14216157,166.35,166.32,25.5]
[1749651042826,26.14216157,166.35,166.3,35.5]
[1749651043037,26.14216157,166.35,166.32,10.0]
[1749651043254,26.14216157,166.35,166.3,35.5]
[1749651043433,26.14216157,166.35,166.32,10.0]
[1749651043633,26.14216157,166.35,166.31,10.0]
[1749651043858,26.14216157,166.35,166.32,10.0]
[1749651044059,26.0,166.35,166.32,35.5]
[1749651044256,26.0,166.35,166.34,10.0]
[1749651044465,26.0,166.35,166.34,35.5]
[1749651044670,4.44324415,166.37,166.36,10.0]
[1749651044840,146.7,166.38,166.36,35.5]
[1749651045343,146.7,166.38,166.37,10.0]
[1749651045655,151.14544335,166.38,166.37,10.0]
[1749651045867,151.14544335,166.38,166.36,25.5]
[1749651046160,146.7,166.38,166.36,35.5]
[1749651046364,146.7,166.38,166.36,25.5]
[1749651046862,146.7,166.38,166.36,35.5]
[1749651048165,146.7,166.38,166.36,10.0]
[1749651050057,146.7,166.38,166.37,25.5]
[1749651050260,146.7,166.38,166.37,35.5]
[1749651050457,5.84,166.39,166.37,35.5]
[1749651051748,5.84,166.39,166.38,10.0]
[1749651053258,26.0,166.36,166.35,10.0]
[1749651053457,30.44807822,166.36,166.35,25.5]
[1749651053766,26.0,166.36,166.33,35.5]
[1749651053950,26.0,166.36,166.34,10.0]
[1749651054553,26.0,166.36,166.33,10.0]
[1749651054764,26.0,166.36,166.32,25.5]
[1749651055049,26.0,166.36,166.31,10.0]
[1749651055050,26.0,166.35,166.31,35.5]
[1749651055474,26.0,166.35,166.32,10.0]
[1749651055676,26.0,166.35,166.31,35.5]
[1749651055972,26.0,166.35,166.31,25.5]
[1749651056176,26.0,166.35,166.31,35.5]
[1749651056380,0.14216157,166.35,166.3,25.5]
[1749651057251,0.14216157,166.35,166.31,10.0]
[1749651057579,26.0,166.36,166.31,10.0]
[1749651057748,26.0,166.35,166.31,10.0]
[1749651057949,30.44807822,166.35,166.31,10.0]
[1749651058146,26.0,166.35,166.31,10.0]
[1749651058349,26.0,166.35,166.32,10.0]
[1749651058568,30.44807822,166.35,166.33,10.0]
[1749651058775,26.0,166.35,166.33,10.0]
[1749651059743,26.14216157,166.36,166.33,10.0]
[1749651060749,26.0,166.35,166.33,10.0]
[1749651061168,0.42648471,166.34,166.29,10.0]
[1749651061374,147.12648471,166.34,166.27,25.5]
[1749651061673,147.12648471,166.34,166.24,25.06464886]
[1749651061674,0.42648471,166.32,166.25,35.5]
[1749651061889,0.42648471,166.3,166.23,10.0]
[1749651062049,0.28432314,166.28,166.23,10.0]
[1749651062249,0.14216157,166.27,166.23,10.0]
[1749651062687,0.14216157,166.27,166.25,10.0]
[1749651062978,0.14216157,166.27,166.24,10.0]
[1749651063364,0.14216157,166.27,166.23,35.5]
[1749651063677,0.14216157,166.27,166.23,10.0]
[1749651063896,0.14216157,166.27,166.2,6.4085]
[1749651064060,0.28432314,166.25,166.19,11.6079]
[1749651064379,4.44807822,166.25,166.21,10.0]
[1749651064586,4.43280312,166.25,166.22,10.0]
[1749651064749,4.43280312,166.25,166.19,20.25754886]
[1749651064750,146.7,166.26,166.25,10.0]
[1749651064950,26.0,166.26,166.25,10.0]
[1749651065575,0.28432314,166.25,166.21,10.0]
[1749651065787,0.14216157,166.24,166.18,10.0]
[1749651065953,0.14216157,166.24,166.19,25.5]
[1749651066359,0.14216157,166.24,166.18,10.0]
[1749651066560,0.14216157,166.24,166.17,10.0]
[1749651066764,0.28432314,166.23,166.18,10.0]
[1749651066962,0.28432314,166.23,166.17,25.5]
[1749651067281,0.28432314,166.23,166.15,11.5513]
[1749651067282,0.14216157,166.19,166.15,10.0]
[1749651067584,0.14216157,166.19,166.14,35.5]
[1749651067758,26.0,166.2,166.16,10.0]
[1749651067965,21.41606059,166.38,166.18,10.0]
[1749651067966,0.42648471,166.21,166.18,10.0]
[1749651068174,26.42648471,166.21,166.18,10.0]
[1749651068777,26.0,166.22,166.18,10.0]
[1749651068982,26.0,166.22,166.18,35.5]
[1749651069186,0.42648471,166.21,166.17,10.0]
[1749651069860,0.42648471,166.21,166.16,25.5]
[1749651070193,0.42648471,166.21,166.16,10.0]
[1749651070362,0.42648471,166.21,166.15,10.0]
[1749651070563,0.42648471,166.21,166.14,35.5]
[1749651071081,0.42648471,166.21,166.16,10.0]
[1749651071472,0.42648471,166.21,166.17,10.0]
[1749651072983,0.42648471,166.21,166.16,10.0]
[1749651073176,0.42648471,166.21,166.17,10.0]
[1749651074455,0.42648471,166.21,166.16,10.0]
[1749651074677,0.42648471,166.21,166.17,10.0]
[1749651079275,26.0,166.16,166.15,10.0]
[1749651079964,26.0,166.16,166.14,35.5]
[1749651080164,26.0,166.16,166.15,10.0]
[1749651080884,26.0,166.16,166.14,35.5]
[1749651081195,0.14216157,166.15,166.14,25.5]
[1749651081363,0.42648471,166.15,166.1,11.5886]
[1749651081564,26.42648471,166.15,166.09,10.0]
[1749651081779,7.4723,166.19,166.08,35.5]
[1749651081780,0.42648471,166.13,166.08,35.5]
[1749651081973,0.42648471,166.13,166.09,10.0]
[1749651082173,0.42648471,166.13,166.08,25.5]
[1749651082174,0.42648471,166.13,166.07,16.2817]
[1749651082400,0.42648471,166.13,166.1,10.0]
[1749651082568,26.0,166.14,166.07,31.7817]
[1749651082569,26.0,166.14,166.12,10.0]
[1749651082769,26.0,166.19,166.15,10.0]
[1749651083785,26.0,166.19,166.14,10.0]
[1749651083992,26.0,166.19,166.15,10.0]
[1749651084788,26.0,166.19,166.14,10.0]
[1749651084994,26.0,166.19,166.15,10.0]
[1749651085369,0.14216157,166.18,166.15,10.0]
[1749651085570,0.42648471,166.18,166.13,10.0]
[1749651085770,0.42648471,166.18,166.15,10.0]
[1749651085981,0.42648471,166.18,166.13,10.0]
[1749651086385,0.42648471,166.18,166.11,35.5]
[1749651086603,0.42648471,166.18,166.13,10.0]
[1749651087380,0.14216157,166.18,166.13,10.0]
[1749651087585,0.14216157,166.18,166.15,10.0]
[1749651087890,26.14216157,166.18,166.15,10.0]
[1749651088093,0.28432314,166.17,166.13,10.0]
[1749651088301,0.28432314,166.17,166.11,35.5]
[1749651088606,26.0,166.14,166.11,35.5]
[1749651088899,26.0,166.14,166.12,10.0]
[1749651090607,146.7,166.17,166.14,10.0]
[1749651090781,146.7,166.17,166.16,10.0]
[1749651094394,146.7,166.17,166.15,10.0]
[1749651095907,146.7,166.22,166.21,10.0]
[1749651096880,5.84,166.23,166.21,10.0]
[1749651097106,5.84,166.23,166.22,10.0]
[1749651099601,5.84,166.27,166.25,10.0]
[1749651102301,5.84,166.27,166.26,10.0]
[1749651103900,26.0,166.25,166.24,10.0]
[1749651109197,26.0,166.24,166.23,10.0]
[1749651110628,0.42648471,166.23,166.19,10.0]
[1749651110798,0.42648471,166.19,166.14,10.0]
[1749651111006,26.14216157,166.19,166.18,10.0]
[1749651111327,26.14216157,166.19,166.17,10.0]
[1749651111495,26.28432314,166.18,166.15,10.0]
[1749651111700,26.0,166.14,166.12,10.0]
[1749651111900,26.0,166.14,166.11,10.0]
[1749651112225,26.0,166.14,166.09,10.0]
[1749651112226,0.42648471,166.13,166.09,10.0]
[1749651112422,0.42648471,166.13,166.08,6.1812]
[1749651112423,0.42648471,166.13,166.1,10.0]
[1749651112799,0.42648471,166.13,166.11,10.0]
[1749651114926,0.14216157,166.09,166.05,10.0]
[1749651115119,26.14216157,166.09,166.08,10.0]
[1749651117627,26.14216157,166.09,166.05,35.48]
[1749651117802,26.14216157,166.09,166.08,10.0]
[1749651120508,0.14216157,166.04,166.0,10.0]
[1749651120706,0.42648471,166.04,165.98,10.0]
[1749651120915,0.42648471,166.04,165.95,6.6011]
[1749651120916,0.14216157,166.0,165.95,16.6011]
[1749651121229,0.42648471,166.0,165.95,16.6011]
[1749651121437,0.42648471,166.0,165.98,10.0]
[1749651123138,0.14216157,166.0,165.98,10.0]
[1749651124638,0.14216157,166.0,165.99,10.0]
[1749651124940,26.0,166.01,166.0,10.0]
[1749651125438,5.82,166.03,166.0,10.0]
[1749651125621,5.82,166.03,165.98,25.5]
[1749651125622,5.82,166.03,166.02,10.0]
[1749651126510,31.82,166.03,166.02,10.0]
[1749651130933,26.0,166.08,166.02,36.90124886]
[1749651131140,26.0,166.08,166.07,10.0]
[1749651131718,26.0,166.06,166.05,10.0]
[1749651133431,5.82,166.09,166.05,10.0]
[1749651133632,5.82,166.09,166.08,10.0]
[1749651133825,5.82,166.09,166.07,10.0]
[1749651134032,26.0,166.07,166.06,10.0]
[1749651134644,26.0,166.07,166.05,10.0]
[1749651134846,26.0,166.05,166.03,10.0]
[1749651135162,26.0,166.05,166.04,10.0]
[1749651135163,26.14216157,166.05,166.04,10.0]
[1749651135652,26.14216157,166.05,166.03,10.0]
[1749651136150,26.14216157,166.05,166.04,10.0]
[1749651136342,26.14216157,166.05,166.03,10.0]
[1749651137558,26.14216157,166.05,166.04,10.0]
[1749651139432,26.14216157,166.05,165.98,6.2458]
[1749651139433,0.42648471,166.04,166.01,10.0]
[1749651139631,26.0,166.0,165.98,10.0]
[1749651139836,26.14216157,166.0,165.99,10.0]
[1749651140558,0.14216157,165.99,165.98,10.0]
[1749651140737,5.96216157,165.99,165.98,10.0]
[1749651141277,26.0,165.97,165.96,10.0]
[1749651144142,5.82,165.99,165.96,10.0]
[1749651144347,31.82,165.99,165.98,10.0]
[1749651144544,31.82,165.99,165.98,35.48]
[1749651144744,5.82,165.99,165.98,35.48]
[1749651146864,5.82,165.99,165.98,54.12964886]
[1749651150770,5.82,165.99,165.98,10.0]
[1749651151476,5.82,165.99,165.96,10.0]
[1749651151772,0.42648471,165.98,165.93,10.0]
[1749651152089,0.42648471,165.98,165.94,10.0]
[1749651153863,0.42648471,165.94,165.93,10.0]
[1749651154069,26.0,165.95,165.93,10.0]
[1749651154387,26.0,165.96,165.95,10.0]
[1749651154580,5.82,165.97,165.95,10.0]
[1749651154785,5.96216157,165.97,165.96,10.0]
[1749651156175,5.82,165.97,165.96,10.0]
[1749651156875,5.82,165.97,165.95,10.0]
[1749651157081,5.82,165.97,165.96,10.0]
[1749651157953,5.82,165.97,165.9,25.48]
[1749651157954,4.41984992,165.99,165.97,10.0]
[1749651158155,5.82,165.99,165.98,10.0]
[1749651162348,26.14216157,166.02,165.98,10.0]
[1749651163097,26.14216157,166.02,166.01,10.0]
[1749651164577,26.14216157,166.02,166.0,10.0]
[1749651164777,26.0,166.02,166.01,10.0]
[1749651165594,4.56458485,166.04,166.01,10.0]
[1749651165891,4.56458485,166.04,166.03,10.0]
[1749651166395,4.42242328,166.04,166.03,10.0]
[1749651167175,146.7,166.05,166.02,10.0]
[1749651167176,26.0,166.03,166.02,10.0]
[1749651173486,26.0,166.05,166.04,10.0]
[1749651173783,5.8,166.08,166.06,10.0]
[1749651173995,5.8,166.08,166.07,10.0]
[1749651174685,146.7,166.15,166.14,10.0]
[1749651175086,172.7,166.15,166.14,10.0]
[1749651175317,146.7,166.15,166.14,10.0]
[1749651175626,172.7,166.15,166.14,10.0]
[1749651176912,26.0,166.15,166.14,10.0]
[1749651177090,5.8,166.17,166.16,10.0]
[1749651177686,26.0,166.2,166.16,28.64964886]
[1749651177996,26.0,166.2,166.19,10.0]
[1749651178201,146.7,166.23,166.22,10.0]
[1749651179211,172.7,166.23,166.22,10.0]
[1749651180103,146.7,166.23,166.22,10.0]
[1749651180317,5.8,166.25,166.22,10.0]
[1749651180506,26.0,166.23,166.22,10.0]
[1749651180689,5.8,166.25,166.22,10.0]
[1749651180892,5.8,166.25,166.24,10.0]
[1749651181100,146.7,166.31,166.29,10.0]
[1749651181316,152.5,166.31,166.29,10.0]
[1749651181749,152.5,166.31,166.3,10.0]
[1749651182516,178.5,166.31,166.3,10.0]
[1749651182821,152.5,166.31,166.3,10.0]
[1749651183197,31.8,166.31,166.3,10.0]
[1749651183610,5.8,166.31,166.3,10.0]
[1749651185092,0.14216157,166.36,166.34,10.0]
[1749651185293,146.7,166.38,166.37,10.0]
[1749651185729,146.7,166.38,166.35,10.0]
[1749651186035,146.7,166.38,166.32,25.44]
[1749651186036,26.0,166.35,166.33,10.0]
[1749651186216,0.14216157,166.34,166.32,35.44]
[1749651186414,0.14216157,166.34,166.33,10.0]
[1749651187540,0.14216157,166.34,166.29,25.44]
[1749651187541,0.42648471,166.34,166.32,10.0]
[1749651188126,146.7,166.36,166.34,10.0]
[1749651188429,0.14216157,166.35,166.34,10.0]
[1749651189716,146.7,166.36,166.35,10.0]
[1749651189914,5.8,166.39,166.38,10.0]
[1749651190632,5.94216157,166.39,166.38,10.0]
[1749651190836,5.8,166.39,166.38,10.0]
[1749651191512,5.94216157,166.39,166.38,10.0]
[1749651191709,5.8,166.39,166.38,10.0]
[1749651192120,31.8,166.39,166.38,10.0]
[1749651192532,5.8,166.39,166.38,10.0]
[1749651193041,5.94216157,166.39,166.38,10.0]
[1749651195339,26.14216157,166.38,166.37,10.0]
[1749651196716,26.0,166.38,166.37,10.0]
[1749651199536,0.28432314,166.37,166.34,10.0]
[1749651199839,0.42648471,166.37,166.35,10.0]
[1749651200028,0.42648471,166.37,166.33,10.0]
[1749651200230,26.42648471,166.37,166.33,10.0]
[1749651201550,26.42648471,166.37,166.34,10.0]
[1749651204631,26.42648471,166.37,166.33,10.0]
[1749651205325,0.42648471,166.35,166.33,10.0]
[1749651205526,0.42648471,166.35,166.28,6.6272]
[1749651205527,26.42648471,166.35,166.3,10.0]
[1749651205950,26.42648471,166.35,166.24,6.1305]
[1749651205951,0.42648471,166.3,166.26,10.0]
[1749651206126,0.42648471,166.3,166.24,6.1305]
[1749651206127,0.42648471,166.3,166.25,10.0]
[1749651206331,26.0,166.26,166.25,10.0]
[1749651214357,26.0,166.26,166.24,10.0]
[1749651214673,26.0,166.26,166.25,10.0]
[1749651216774,26.0,166.3,166.25,10.0]
[1749651216967,26.0,166.3,166.28,10.0]
[1749651216968,26.0,166.29,166.28,10.0]
[1749651223491,4.42757396,166.32,166.31,10.0]
[1749651223667,152.48,166.33,166.31,10.0]
[1749651223863,152.48,166.33,166.32,10.0]
[1749651225097,146.7,166.33,166.32,10.0]
[1749651226076,0.14216157,166.37,166.32,10.0]
[1749651226273,152.247542,166.39,166.36,10.0]
[1749651226274,10.20077105,166.38,166.36,10.0]
[1749651226487,4.44077105,166.38,166.37,10.0]
[1749651226843,4.44215448,166.38,166.37,10.0]
[1749651226963,4.58431605,166.38,166.37,10.0]
[1749651227307,4.72647762,166.38,166.37,10.0]
[1749651227797,26.14216157,166.37,166.36,10.0]
[1749651228166,26.0,166.37,166.36,10.0]
[1749651229310,26.28432314,166.37,166.36,10.0]
[1749651229471,26.14216157,166.36,166.35,10.0]
[1749651229678,30.58151789,166.36,166.35,10.0]
[1749651229981,30.58151789,166.36,166.32,10.0]
[1749651229982,26.28432314,166.36,166.32,10.0]
[1749651230178,0.14216157,166.35,166.32,10.0]
[1749651230390,26.28432314,166.35,166.34,10.0]
[1749651230605,0.14216157,166.34,166.32,10.0]
[1749651231104,5.90216157,166.34,166.32,10.0]
[1749651231685,152.74432314,166.34,166.33,10.0]
[1749651232011,157.18367946,166.34,166.33,10.0]
[1749651232579,152.74432314,166.34,166.33,10.0]
[1749651232785,157.18123434,166.34,166.33,10.0]
[1749651233512,152.74432314,166.34,166.33,10.0]
[1749651234214,0.14216157,166.33,166.32,10.0]
[1749651234510,152.60216157,166.34,166.33,10.0]
[1749651237203,152.46,166.34,166.33,10.0]
[1749651237590,5.76,166.34,166.33,10.0]
[1749651238518,5.90216157,166.34,166.33,10.0]
[1749651238887,0.14216157,166.33,166.32,10.0]
[1749651240587,26.0,166.32,166.31,10.0]
[1749651249217,5.76,166.34,166.33,10.0]
[1749651249517,5.76,166.34,166.33,35.36]
[1749651249818,31.76,166.34,166.33,35.36]
[1749651253006,5.90216157,166.34,166.33,10.0]
[1749651253312,10.34942236,166.34,166.33,10.0]
[1749651253921,26.0,166.33,166.32,10.0]
[1749651254222,0.14216157,166.28,166.26,10.0]
[1749651254520,0.14216157,166.28,166.2,7.9276]
[1749651254521,0.14216157,166.28,166.27,10.0]
[1749651255599,0.14216157,166.28,166.26,10.0]
[1749651255823,0.14216157,166.28,166.25,10.0]
[1749651256006,0.14216157,166.28,166.27,10.0]
[1749651256715,0.14216157,166.28,166.26,10.0]
[1749651256915,0.14216157,166.28,166.27,10.0]
[1749651259226,26.0,166.29,166.27,10.0]
[1749651259432,146.7,166.37,166.32,10.0]
[1749651259726,7.39672267,166.41,166.37,10.0]
[1749651259727,5.74,166.41,166.37,10.0]
[1749651259924,5.74,166.41,166.35,10.0]
[1749651260115,26.0,166.38,166.35,10.0]
[1749651260314,0.14216157,166.36,166.34,35.36]
[1749651260510,26.14216157,166.36,166.33,10.0]
[1749651260716,177.28987578,166.36,166.33,10.0]
[1749651260920,4.44771421,166.35,166.33,10.0]
[1749651261831,4.44771421,166.35,166.32,10.0]
[1749651262031,4.44771421,166.35,166.33,10.0]
[1749651263734,172.7,166.36,166.34,14.49425234]
[1749651263920,172.7,166.36,166.34,10.0]
[1749651264359,0.14216157,166.35,166.34,10.0]
[1749651264837,172.7,166.36,166.34,14.49402654]
[1749651265017,5.74,166.41,166.38,10.0]
[1749651265515,5.74,166.41,166.4,10.0]
[1749651265716,5.74,166.41,166.38,10.0]
[1749651266038,26.14216157,166.39,166.38,10.0]
[1749651266233,26.0,166.39,166.38,10.0]
[1749651266609,26.14216157,166.39,166.38,10.0]
[1749651267014,5.74,166.41,166.37,10.0]
[1749651267015,26.14216157,166.38,166.37,10.0]
[1749651268707,26.14216157,166.38,166.37,14.4933417]
[1749651268913,26.14216157,166.38,166.37,14.49333426]
[1749651269132,26.14216157,166.38,166.37,14.49331787]
[1749651269314,26.14216157,166.38,166.37,10.0]
[1749651269817,26.14216157,166.38,166.36,10.0]
[1749651273044,26.0,166.37,166.36,10.0]
[1749651276440,26.0,166.37,166.28,26.35974886]
[1749651276441,0.14216157,166.36,166.31,10.0]
[1749651276638,26.0,166.32,166.31,10.0]
[1749651276821,26.0,166.32,166.31,14.49079285]
[1749651277017,26.0,166.32,166.31,14.49082686]
[1749651277238,26.0,166.32,166.31,14.49073005]
[1749651277537,26.0,166.32,166.31,10.0]
[1749651279132,26.14216157,166.32,166.31,10.0]
[1749651280343,26.0,166.32,166.31,10.0]
[1749651282437,26.0,166.32,166.29,10.0]
[1749651282944,26.14216157,166.32,166.31,10.0]
[1749651283150,0.14216157,166.31,166.29,10.0]
[1749651283352,0.14216157,166.31,166.28,10.0]
[1749651283927,0.14216157,166.31,166.29,10.0]
[1749651284151,26.0,166.3,166.29,10.0]
[1749651287653,26.0,166.3,166.26,25.34]
[1749651287654,5.74,166.38,166.37,10.0]
[1749651288140,5.88216157,166.38,166.37,10.0]
[1749651289474,5.74,166.38,166.37,10.0]
[1749651289959,5.88216157,166.38,166.36,10.0]
[1749651290163,5.88216157,166.38,166.37,10.0]
[1749651290333,5.88216157,166.38,166.36,10.0]
[1749651290539,5.88216157,166.38,166.37,10.0]
[1749651291158,5.74,166.38,166.37,10.0]
[1749651292150,31.74,166.38,166.37,10.0]
[1749651293944,5.74,166.38,166.37,10.0]
[1749651294735,5.74,166.38,166.37,28.64964886]